[Event "Goteborg Open 2024"]
[Site "Goteborgs Schackcentrum, Vegatan 20, Gothenburg, Sweden"]
[Date "2024.08.02"]
[Round "2.21"]
[White "Olsson, Jonas"]
[Black "Hammar, Arvid"]
[Result "0-1"]
[TimeControl "15 minutes + 5 seconds per move from move one (Round 1 - 4) / 90 minutes + 30 seconds per move from move one (Round 5 - 8)"]
[WhiteFideId "1734415"]
[BlackFideId "1735977"]
[WhiteElo "1741"]
[BlackElo "1653"]

1. e4 {[%clk 00:15:06]} {[%emt 00:00:02]} e5 {[%clk 00:15:07]} {[%emt
00:00:05]} 2. f4 {[%clk 00:15:05]} {[%emt 00:00:06]} d5 {[%clk 00:15:10]}
{[%emt 00:00:01]} 3. exd5 {[%clk 00:14:44]} {[%emt 00:00:26]} exf4 {[%clk
00:15:06]} {[%emt 00:00:08]} 4. Nf3 {[%clk 00:14:29]} {[%emt 00:00:20]} Bg4
{[%clk 00:14:47]} {[%emt 00:00:25]} 5. h3 {[%clk 00:13:48]} {[%emt 00:00:45]}
Bh5 {[%clk 00:14:34]} {[%emt 00:00:19]} 6. Qe2+ {[%clk 00:13:05]} {[%emt
00:00:48]} Be7 {[%clk 00:14:29]} {[%emt 00:00:10]} 7. d3 {[%clk 00:12:40]}
{[%emt 00:00:30]} Nf6 {[%clk 00:14:14]} {[%emt 00:00:20]} 8. Bxf4 {[%clk
00:12:27]} {[%emt 00:00:18]} Nxd5 {[%clk 00:14:08]} {[%emt 00:00:11]} 9. Bd2
{[%clk 00:11:29]} {[%emt 00:01:03]} O-O {[%clk 00:14:00]} {[%emt 00:00:13]} 10.
Nc3 {[%clk 00:11:10]} {[%emt 00:00:24]} Bh4+ {[%clk 00:13:40]} {[%emt
00:00:24]} 11. Kd1 {[%clk 00:10:51]} {[%emt 00:00:24]} Re8 {[%clk 00:12:18]} 12.
Ne4 {[%clk 00:09:27]} {[%emt 00:02:58]} f5 {[%clk 00:11:44]} 13. g4 {[%clk
00:09:02]} {[%emt 00:01:07]} fxe4 {[%clk 00:11:24]} 14. gxh5 {[%clk 00:09:02]}
exf3 {[%clk 00:11:10]} {[%emt 00:01:16]} 15. Qxf3 {[%clk 00:08:30]} Nc6 {[%clk
00:10:32]} {[%emt 00:00:54]} 16. Bg2 {[%clk 00:08:01]} Nf6 {[%clk 00:09:52]}
{[%emt 00:01:19]} 17. Be1 {[%clk 00:06:29]} {[%emt 00:01:37]} Bxe1 {[%clk
00:09:47]} {[%emt 00:00:10]} 18. Rxe1 {[%clk 00:06:32]} {[%emt 00:00:02]} Qd7
{[%clk 00:09:32]} {[%emt 00:00:20]} 19. Kd2 {[%clk 00:06:18]} {[%emt 00:00:18]}
Rxe1 {[%clk 00:09:17]} {[%emt 00:00:21]} 20. Rxe1 {[%clk 00:06:21]} {[%emt
00:00:02]} Rf8 {[%clk 00:08:51]} {[%emt 00:00:30]} 21. Qf4 {[%clk 00:05:23]}
{[%emt 00:01:04]} Nxh5 {[%clk 00:08:33]} {[%emt 00:00:23]} 22. Qc4+ {[%clk
00:04:55]} {[%emt 00:00:34]} Kh8 {[%clk 00:08:13]} {[%emt 00:00:24]} 23. Bxc6
{[%clk 00:04:19]} {[%emt 00:00:41]} Qxc6 {[%clk 00:07:50]} {[%emt 00:00:27]} 24.
Qg4 {[%clk 00:03:15]} {[%emt 00:01:09]} Rf2+ {[%clk 00:06:09]} {[%emt
00:01:46]} 25. Re2 {[%clk 00:02:59]} {[%emt 00:00:21]} Qh6+ {[%clk 00:05:01]}
26. Kd1 {[%clk 00:02:21]} {[%emt 00:01:56]} Rf1+ {[%emt 00:00:34]} 27. Re1
{[%clk 00:02:08]} Rxe1+ {[%clk 00:04:17]} {[%emt 00:00:38]} 28. Kxe1 {[%clk
00:02:09]} {[%emt 00:00:04]} Qe3+ {[%clk 00:04:11]} {[%emt 00:00:12]} 29. Kd1
{[%clk 00:01:50]} {[%emt 00:00:24]} Nf6 {[%clk 00:03:57]} {[%emt 00:00:19]} 30.
Qc8+ {[%clk 00:01:29]} {[%emt 00:00:26]} Ng8 {[%clk 00:03:49]} {[%emt
00:00:13]} 31. Qxc7 {[%clk 00:01:29]} {[%emt 00:00:06]} h6 {[%clk 00:03:46]}
{[%emt 00:00:07]} 32. Qxb7 {[%clk 00:01:14]} {[%emt 00:00:21]} Nf6 {[%clk
00:03:42]} {[%emt 00:00:07]} 33. Qc8+ {[%clk 00:00:56]} {[%emt 00:00:24]} Kh7
{[%clk 00:03:31]} {[%emt 00:00:15]} 34. Qf5+ {[%clk 00:00:53]} {[%emt
00:00:09]} Kg8 {[%clk 00:03:28]} {[%emt 00:00:08]} 35. c4 {[%clk 00:00:39]}
{[%emt 00:00:19]} Kf7 {[%clk 00:03:23]} {[%emt 00:00:11]} 36. c5 {[%clk
00:00:33]} {[%emt 00:00:11]} g6 {[%clk 00:03:17]} {[%emt 00:00:11]} 37. Qc8
{[%clk 00:00:25]} {[%emt 00:00:12]} Qxd3+ {[%clk 00:03:12]} {[%emt 00:00:10]}
38. Kc1 {[%clk 00:00:18]} {[%emt 00:00:13]} Ne4 {[%clk 00:02:30]} {[%emt
00:00:46]} 39. Qc7+ {[%clk 00:00:12]} {[%emt 00:00:11]} Kf6 {[%clk 00:02:24]}
{[%emt 00:00:10]} 40. Qc6+ {[%emt 00:00:13]} 0-1

[Event "Goteborg Open 2024"]
[Site "Goteborgs Schackcentrum, Vegatan 20, Gothenburg, Sweden"]
[Date "2024.08.02"]
[Round "3.1"]
[White "Utriainen, Tapani"]
[Black "Rasti, Arvin"]
[Result "0-1"]
[TimeControl "15 minutes + 5 seconds per move from move one (Round 1 - 4) / 90 minutes + 30 seconds per move from move one (Round 5 - 8)"]
[BlackTitle "FM"]
[WhiteFideId "16300696"]
[BlackFideId "1741160"]
[WhiteElo "1914"]
[BlackElo "2195"]

1. d4 {[%clk 00:15:08]} {[%emt 00:00:02]} d5 {[%clk 00:15:06]} {[%emt
00:00:04]} 2. c4 {[%clk 00:15:12]} {[%emt 00:00:01]} e6 {[%clk 00:15:10]}
{[%emt 00:00:01]} 3. Nc3 {[%clk 00:15:16]} {[%emt 00:00:01]} c5 {[%clk
00:15:11]} {[%emt 00:00:05]} 4. cxd5 {[%clk 00:15:15]} {[%emt 00:00:05]} cxd4
{[%clk 00:15:15]} {[%emt 00:00:02]} 5. Qa4+ {[%clk 00:15:05]} {[%emt 00:00:14]}
Bd7 {[%clk 00:15:19]} {[%emt 00:00:01]} 6. Qxd4 {[%clk 00:15:09]} {[%emt
00:00:01]} exd5 {[%clk 00:15:22]} {[%emt 00:00:01]} 7. Nf3 {[%clk 00:12:49]}
{[%emt 00:02:25]} Nc6 {[%clk 00:15:20]} {[%emt 00:00:07]} 8. Qd1 {[%clk
00:12:47]} {[%emt 00:00:07]} Nf6 {[%clk 00:15:01]} {[%emt 00:00:24]} 9. Bg5
{[%clk 00:12:49]} {[%emt 00:00:02]} h6 {[%clk 00:14:43]} {[%emt 00:00:24]} 10.
Bxf6 {[%clk 00:12:40]} {[%emt 00:00:15]} Qxf6 {[%clk 00:14:46]} {[%emt
00:00:02]} 11. Nxd5 {[%clk 00:11:12]} {[%emt 00:01:32]} Qd8 {[%clk 00:12:56]}
{[%emt 00:01:55]} 12. e3 {[%clk 00:11:07]} {[%emt 00:00:11]} Be6 {[%clk
00:12:44]} {[%emt 00:00:17]} 13. Nc3 {[%clk 00:10:56]} {[%emt 00:00:15]} Qb6
{[%clk 00:12:34]} {[%emt 00:00:14]} 14. Bb5 {[%clk 00:08:23]} {[%emt 00:02:39]}
Rd8 {[%clk 00:11:35]} {[%emt 00:01:05]} 15. Qa4 {[%clk 00:07:55]} {[%emt
00:00:32]} a6 {[%clk 00:10:43]} {[%emt 00:00:57]} 16. Bxc6+ {[%clk 00:07:50]}
{[%emt 00:00:11]} bxc6 {[%clk 00:10:47]} 17. O-O {[%clk 00:07:12]} {[%emt
00:00:43]} Be7 {[%clk 00:10:38]} {[%emt 00:00:14]} 18. Nd4 {[%clk 00:06:54]}
{[%emt 00:00:23]} Bd7 {[%clk 00:10:40]} {[%emt 00:00:03]} 19. Qc2 {[%clk
00:06:46]} {[%emt 00:00:13]} O-O {[%clk 00:10:19]} {[%emt 00:00:27]} 20. Na4
{[%clk 00:05:39]} {[%emt 00:01:11]} Qc7 {[%clk 00:10:22]} {[%emt 00:00:01]} 21.
Nc5 {[%clk 00:05:36]} {[%emt 00:00:09]} Bc8 {[%clk 00:10:10]} {[%emt 00:00:19]}
22. Rac1 {[%clk 00:05:18]} {[%emt 00:00:21]} Bd6 {[%clk 00:10:13]} {[%emt
00:00:02]} 23. h3 {[%clk 00:05:15]} {[%emt 00:00:08]} Be7 {[%clk 00:09:53]}
{[%emt 00:00:26]} 24. Ncb3 {[%clk 00:04:57]} {[%emt 00:00:23]} Rd6 {[%clk
00:09:09]} {[%emt 00:00:48]} 25. Nxc6 {[%clk 00:04:35]} {[%emt 00:00:28]} Bh4
{[%clk 00:09:13]} 26. Qe4 {[%clk 00:04:20]} {[%emt 00:00:19]} Bg5 {[%clk
00:09:06]} {[%emt 00:00:13]} 27. Nbd4 {[%clk 00:03:30]} {[%emt 00:00:55]} Bb7
{[%clk 00:08:46]} {[%emt 00:00:26]} 28. Rc3 {[%clk 00:02:36]} {[%emt 00:00:59]}
Qd7 {[%clk 00:08:20]} {[%emt 00:00:32]} 29. Qc2 {[%clk 00:02:32]} {[%emt
00:00:07]} Bf6 {[%clk 00:07:47]} {[%emt 00:00:38]} 30. Rc1 {[%clk 00:02:29]}
{[%emt 00:00:08]} Rd5 {[%clk 00:07:42]} {[%emt 00:00:10]} 31. Nb4 {[%clk
00:02:20]} {[%emt 00:00:15]} Rg5 {[%clk 00:07:46]} {[%emt 00:00:01]} 32. g3
{[%clk 00:01:44]} {[%emt 00:00:40]} Qxh3 {[%clk 00:07:33]} {[%emt 00:00:18]} 33.
e4 {[%clk 00:01:35]} {[%emt 00:00:14]} 0-1

[Event "Goteborg Open 2024"]
[Site "Goteborgs Schackcentrum, Vegatan 20, Gothenburg, Sweden"]
[Date "2024.08.02"]
[Round "3.2"]
[White "Ask, Josef"]
[Black "Degerfeldt, Sven"]
[Result "0-1"]
[TimeControl "15 minutes + 5 seconds per move from move one (Round 1 - 4) / 90 minutes + 30 seconds per move from move one (Round 5 - 8)"]
[WhiteTitle "FM"]
[WhiteFideId "1704583"]
[BlackFideId "1717430"]
[WhiteElo "2129"]
[BlackElo "1902"]

1. c4 {[%clk 00:15:09]} {[%emt 00:00:01]} c5 {[%clk 00:15:08]} {[%emt
00:00:02]} 2. b3 {[%clk 00:15:06]} {[%emt 00:00:08]} Nf6 {[%clk 00:15:02]}
{[%emt 00:00:11]} 3. Bb2 {[%clk 00:15:01]} {[%emt 00:00:11]} e6 {[%clk
00:15:04]} {[%emt 00:00:01]} 4. Nf3 {[%clk 00:14:53]} {[%emt 00:00:14]} Be7
{[%clk 00:14:59]} {[%emt 00:00:10]} 5. g3 {[%clk 00:14:36]} {[%emt 00:00:22]}
b6 {[%clk 00:14:50]} {[%emt 00:00:14]} 6. Bg2 {[%clk 00:14:36]} {[%emt
00:00:05]} Bb7 {[%clk 00:14:54]} 7. O-O {[%clk 00:14:38]} {[%emt 00:00:04]} d6
{[%clk 00:14:57]} {[%emt 00:00:01]} 8. d3 {[%clk 00:14:28]} {[%emt 00:00:14]}
Nbd7 {[%clk 00:14:59]} {[%emt 00:00:03]} 9. e4 {[%clk 00:14:19]} {[%emt
00:00:15]} O-O {[%clk 00:14:59]} {[%emt 00:00:04]} 10. Nbd2 {[%clk 00:14:03]}
{[%emt 00:00:22]} Qc7 {[%clk 00:14:51]} {[%emt 00:00:12]} 11. Rc1 {[%clk
00:13:02]} {[%emt 00:01:07]} Rac8 {[%clk 00:12:56]} {[%emt 00:01:59]} 12. Qe2
{[%clk 00:12:59]} {[%emt 00:00:10]} e5 {[%clk 00:10:55]} {[%emt 00:02:05]} 13.
Nh4 {[%clk 00:12:29]} {[%emt 00:00:35]} g6 {[%clk 00:09:56]} {[%emt 00:01:03]}
14. Bh3 {[%clk 00:12:22]} {[%emt 00:00:13]} Rcd8 {[%clk 00:09:53]} {[%emt
00:00:08]} 15. Ng2 {[%clk 00:11:47]} {[%emt 00:00:40]} Nb8 {[%clk 00:09:05]}
{[%emt 00:00:53]} 16. f4 {[%clk 00:11:17]} {[%emt 00:00:34]} Nc6 {[%clk
00:09:07]} {[%emt 00:00:03]} 17. Nf3 {[%clk 00:10:33]} {[%emt 00:00:50]} Nd4
{[%clk 00:08:50]} {[%emt 00:00:22]} 18. Nxd4 {[%clk 00:10:08]} {[%emt
00:00:29]} cxd4 {[%clk 00:08:44]} {[%emt 00:00:11]} 19. Qd2 {[%clk 00:09:11]}
{[%emt 00:01:02]} Kg7 {[%clk 00:07:33]} {[%emt 00:01:17]} 20. Rf2 {[%clk
00:08:30]} {[%emt 00:00:46]} Bc8 {[%clk 00:06:19]} {[%emt 00:01:18]} 21. f5
{[%clk 00:08:21]} {[%emt 00:00:15]} h6 {[%clk 00:06:06]} {[%emt 00:00:16]} 22.
Rcf1 {[%clk 00:07:41]} {[%emt 00:00:46]} g5 {[%clk 00:06:03]} {[%emt 00:00:09]}
23. Ne1 {[%clk 00:06:22]} {[%emt 00:01:24]} Rg8 {[%clk 00:05:13]} {[%emt
00:00:54]} 24. Bc1 {[%clk 00:05:58]} {[%emt 00:00:30]} Nh7 {[%clk 00:04:19]}
{[%emt 00:00:58]} 25. f6+ {[%clk 00:05:43]} {[%emt 00:00:22]} Bxf6 {[%clk
00:04:01]} {[%emt 00:00:22]} 26. Bf5 {[%clk 00:05:34]} {[%emt 00:00:13]} Bxf5
{[%clk 00:04:03]} {[%emt 00:00:03]} 27. Rxf5 {[%clk 00:05:34]} {[%emt
00:00:06]} Rde8 {[%clk 00:03:37]} {[%emt 00:00:30]} 28. Qe2 {[%clk 00:04:43]}
{[%emt 00:00:57]} Bd8 {[%clk 00:02:50]} {[%emt 00:00:51]} 29. Rxf7+ {[%clk
00:03:22]} {[%emt 00:01:28]} Qxf7 {[%clk 00:02:53]} 30. Rxf7+ {[%clk 00:03:24]}
{[%emt 00:00:02]} Kxf7 {[%clk 00:02:56]} {[%emt 00:00:01]} 31. Qh5+ {[%emt
00:01:19]} Kg7 {[%clk 00:02:56]} {[%emt 00:00:04]} 32. Nf3 {[%clk 00:01:52]}
{[%emt 00:00:26]} Ref8 {[%clk 00:02:48]} {[%emt 00:00:13]} 33. Kg2 {[%clk
00:01:37]} {[%emt 00:00:20]} Rf6 {[%clk 00:02:33]} {[%emt 00:00:21]} 34. Qg4
{[%clk 00:01:32]} {[%emt 00:00:09]} Rgf8 {[%clk 00:02:26]} {[%emt 00:00:11]} 35.
Nh4 {[%clk 00:00:54]} {[%emt 00:00:44]} Rf2+ {[%clk 00:01:21]} {[%emt
00:01:09]} 36. Kh3 {[%clk 00:00:56]} {[%emt 00:00:04]} Nf6 {[%clk 00:01:14]}
{[%emt 00:00:12]} 37. Nf5+ {[%clk 00:00:29]} {[%emt 00:00:32]} Kh7 {[%clk
00:01:16]} {[%emt 00:00:02]} 38. Qd1 {[%clk 00:00:08]} {[%emt 00:00:27]} g4+
{[%clk 00:01:13]} {[%emt 00:00:07]} 39. Qxg4 {[%clk 00:00:00]} {[%emt
00:00:09]} 0-1

[Event "Goteborg Open 2024"]
[Site "Goteborgs Schackcentrum, Vegatan 20, Gothenburg, Sweden"]
[Date "2024.08.02"]
[Round "3.3"]
[White "Eldh, Hjalmar"]
[Black "Wickstrom, Carina"]
[Result "1-0"]
[TimeControl "15 minutes + 5 seconds per move from move one (Round 1 - 4) / 90 minutes + 30 seconds per move from move one (Round 5 - 8)"]
[WhiteFideId "1767968"]
[BlackFideId "1743201"]
[WhiteElo "1897"]
[BlackElo "2013"]

1. e4 {[%clk 00:15:08]} {[%emt 00:00:02]} c6 {[%clk 00:15:09]} {[%emt
00:00:01]} 2. d4 {[%clk 00:15:12]} {[%emt 00:00:01]} d5 {[%clk 00:15:13]} 3. f3
{[%clk 00:15:15]} {[%emt 00:00:02]} dxe4 {[%clk 00:15:12]} {[%emt 00:00:06]} 4.
fxe4 {[%clk 00:15:19]} {[%emt 00:00:01]} e5 {[%clk 00:15:11]} {[%emt 00:00:05]}
5. Nf3 {[%clk 00:15:18]} {[%emt 00:00:06]} Bg4 {[%clk 00:15:14]} {[%emt
00:00:02]} 6. Bc4 {[%clk 00:15:20]} {[%emt 00:00:02]} Nd7 {[%clk 00:15:18]}
{[%emt 00:00:02]} 7. c3 {[%clk 00:15:23]} {[%emt 00:00:03]} Ngf6 {[%clk
00:15:17]} {[%emt 00:00:06]} 8. Qb3 {[%clk 00:15:25]} {[%emt 00:00:02]} Bh5
{[%clk 00:11:55]} {[%emt 00:03:27]} 9. Qxb7 {[%clk 00:15:07]} {[%emt 00:00:24]}
Nxe4 {[%clk 00:10:20]} {[%emt 00:01:39]} 10. Qxc6 {[%clk 00:13:25]} {[%emt
00:01:46]} Bxf3 {[%clk 00:10:00]} {[%emt 00:00:26]} 11. gxf3 {[%clk 00:12:59]}
{[%emt 00:00:31]} Qh4+ {[%clk 00:07:54]} {[%emt 00:02:11]} 12. Kd1 {[%clk
00:12:54]} {[%emt 00:00:08]} Nf2+ {[%clk 00:07:55]} {[%emt 00:00:06]} 13. Kc2
{[%clk 00:12:56]} {[%emt 00:00:02]} Rd8 {[%clk 00:07:16]} {[%emt 00:00:44]} 14.
Re1 {[%clk 00:12:13]} {[%emt 00:00:48]} Be7 {[%clk 00:05:54]} {[%emt 00:01:28]}
15. Rxe5 {[%clk 00:11:31]} {[%emt 00:00:47]} O-O {[%clk 00:05:47]} {[%emt
00:00:12]} 16. Re2 {[%clk 00:10:22]} {[%emt 00:01:11]} Nb6 {[%clk 00:05:22]}
{[%emt 00:00:34]} 17. Bb3 {[%clk 00:09:47]} {[%emt 00:00:39]} Rc8 {[%clk
00:04:40]} {[%emt 00:00:47]} 18. Qb5 {[%clk 00:09:07]} {[%emt 00:00:39]} Bf6
{[%clk 00:02:58]} {[%emt 00:01:53]} 19. Be3 {[%clk 00:08:47]} {[%emt 00:00:25]}
Bxd4 {[%clk 00:02:57]} {[%emt 00:00:06]} 20. Bxf2 {[%clk 00:08:26]} {[%emt
00:00:26]} Bxf2 {[%clk 00:03:00]} {[%emt 00:00:02]} 21. Nd2 {[%clk 00:08:09]}
{[%emt 00:00:20]} Bd4 {[%clk 00:01:55]} {[%emt 00:01:12]} 22. Rd1 {[%clk
00:06:52]} {[%emt 00:01:22]} Qf6 {[%clk 00:01:56]} {[%emt 00:00:04]} 23. Qd3
{[%clk 00:06:27]} {[%emt 00:00:30]} Rfd8 {[%clk 00:01:55]} {[%emt 00:00:06]} 24.
Ne4 {[%clk 00:06:28]} {[%emt 00:00:04]} Qh6 {[%clk 00:01:22]} {[%emt 00:00:39]}
25. Kb1 {[%clk 00:06:23]} {[%emt 00:00:09]} g6 {[%clk 00:01:07]} {[%emt
00:00:21]} 26. cxd4 {[%clk 00:06:12]} {[%emt 00:00:15]} Qf4 {[%clk 00:00:43]}
{[%emt 00:00:29]} 27. Qe3 {[%clk 00:05:48]} {[%emt 00:00:29]} Qf5 {[%clk
00:00:41]} {[%emt 00:00:07]} 28. Bc2 {[%clk 00:05:27]} {[%emt 00:00:26]} Qb5
{[%clk 00:00:33]} {[%emt 00:00:13]} 29. Nc3 {[%clk 00:04:45]} {[%emt 00:00:46]}
Qb4 {[%clk 00:00:24]} {[%emt 00:00:15]} 30. Qe7 {[%clk 00:04:31]} {[%emt
00:00:19]} Qa5 {[%clk 00:00:11]} {[%emt 00:00:17]} 31. Bb3 {[%clk 00:04:17]}
{[%emt 00:00:20]} Nc4 {[%clk 00:00:13]} {[%emt 00:00:03]} 32. Bxc4 {[%clk
00:04:15]} {[%emt 00:00:07]} Rxc4 {[%clk 00:00:17]} 33. Qe3 {[%clk 00:04:02]}
{[%emt 00:00:13]} Rb8 {[%clk 00:00:21]} {[%emt 00:00:06]} 34. Rc2 {[%clk
00:03:36]} {[%emt 00:00:31]} Rcb4 {[%clk 00:00:13]} {[%emt 00:00:13]} 35. d5
{[%clk 00:03:11]} {[%emt 00:00:30]} Qa3 {[%clk 00:00:12]} {[%emt 00:00:06]} 36.
Qc1 {[%clk 00:03:03]} {[%emt 00:00:14]} Rxb2+ {[%clk 00:00:07]} {[%emt
00:00:10]} 37. Rxb2 {[%clk 00:03:03]} {[%emt 00:00:05]} Rc8 {[%clk 00:00:07]}
{[%emt 00:00:04]} 38. Ka1 {[%clk 00:02:46]} {[%emt 00:00:22]} Rxc3 {[%clk
00:00:11]} {[%emt 00:00:02]} 39. Rb8+ {[%clk 00:02:41]} {[%emt 00:00:09]} Kg7
{[%clk 00:00:14]} {[%emt 00:00:02]} 40. Qxa3 {[%clk 00:02:44]} {[%emt
00:00:02]} Rxa3 {[%clk 00:00:17]} {[%emt 00:00:03]} 41. d6 {[%clk 00:02:47]}
{[%emt 00:00:02]} 1-0